fUST/lending_fUST_20250824
["ID","MTS","AMOUNT","RATE_DAILY","PERIOD"]
[381113065,1756050652564,-155.0,0.00047487,30]
[381113066,1756050652573,-157.03689224,0.00047487,30]
[381113067,1756050652583,-1763.0,0.00047487,30]
[381113068,1756050652592,-1763.0,0.00047487,30]
[381113069,1756050652602,-1763.0,0.00047487,30]
[381113070,1756050652612,-1763.0,0.00047487,30]
[381113071,1756050652621,-1763.0,0.00047487,30]
[381113072,1756050652631,-1763.0,0.00047487,30]
[381113073,1756050652640,-1763.0,0.00047487,30]
[381113074,1756050652650,-1763.0,0.00047487,30]
[381113075,1756050652660,-1763.0,0.00047487,30]
[381113076,1756050652670,-327.72789915,0.00047487,30]
[381113077,1756050652679,-153.0,0.00047487,30]
[381113078,1756050652688,-1763.0,0.00047487,30]
[381113079,1756050652698,-1763.0,0.00047487,30]
[381113080,1756050652708,-1763.0,0.00047487,30]
[381113081,1756050652717,-1763.0,0.00047487,30]
[381113082,1756050652727,-1763.0,0.00047487,30]
[381113083,1756050652736,-1763.0,0.00047487,30]
[381113084,1756050652746,-1763.0,0.00047487,30]
[381113085,1756050652755,-1763.0,0.00047487,30]
[381113086,1756050652765,-153.0,0.00047487,30]
[381113087,1756050652775,-153.0,0.00047487,30]
[381113088,1756050652785,-1763.0,0.00047487,30]
[381113089,1756050652795,-153.0,0.00047487,30]
[381113090,1756050652804,-1763.0,0.00047487,30]
[381113091,1756050652815,-153.0,0.00047487,30]
[381113092,1756050652824,-1763.0,0.00047487,30]
[381113093,1756050652834,-1763.0,0.00047487,30]
[381113094,1756050652844,-153.0,0.00047487,30]
[381113095,1756050652854,-1763.0,0.00047487,30]
[381113096,1756050652864,-153.0,0.00047487,30]
[381113097,1756050652874,-1763.0,0.00047487,30]
[381113098,1756050652884,-153.0,0.00047487,30]
[381113099,1756050652894,-1763.0,0.00047487,30]
[381113100,1756050652904,-1763.0,0.00047487,30]
[381113101,1756050652914,-153.0,0.00047487,30]
[381113102,1756050652924,-1763.0,0.00047487,30]
[381113103,1756050652934,-153.0,0.00047487,30]
[381113104,1756050652943,-1763.0,0.00047487,30]
[381113105,1756050652953,-153.0,0.00047487,30]
[381113106,1756050652963,-1763.0,0.00047487,30]
[381113107,1756050652973,-153.0,0.00047487,30]
[381113108,1756050652983,-1763.0,0.00047487,30]
[381113109,1756050652992,-1763.0,0.00047487,30]
[381113110,1756050653002,-153.0,0.00047487,30]
[381113111,1756050653170,-1763.0,0.00047487,30]
[381113112,1756050653180,-1763.0,0.00047487,30]
[381113113,1756050653189,-153.0,0.00047487,30]
[381113114,1756050653199,-1763.0,0.00047487,30]
[381113115,1756050653208,-153.0,0.00047487,30]
[381113116,1756050653218,-1763.0,0.00047487,30]
[381113117,1756050653228,-153.0,0.00047487,30]
[381113118,1756050653238,-153.0,0.00047487,30]
[381113119,1756050653248,-1763.0,0.00047487,30]
[381113120,1756050653258,-153.0,0.00047487,30]
[381113121,1756050653268,-1763.0,0.00047487,30]
[381113122,1756050653278,-1763.0,0.00047487,30]
[381113123,1756050653288,-153.0,0.00047487,30]
[381113124,1756050653298,-1763.0,0.00047487,30]
[381113125,1756050653308,-153.0,0.00047487,30]
[381113126,1756050653319,-1763.0,0.00047487,30]
[381113127,1756050653329,-153.0,0.00047487,30]
[381113128,1756050653339,-1763.0,0.00047487,30]
[381113129,1756050653348,-1763.0,0.00047487,30]
[381113130,1756050653358,-153.0,0.00047487,30]
[381113131,1756050653368,-1763.0,0.00047487,30]
[381113132,1756050653377,-1763.0,0.00047487,30]
[381113133,1756050653387,-1763.0,0.00047487,30]
[381113134,1756050653397,-1763.0,0.00047487,30]
[381113135,1756050653407,-1763.0,0.00047487,30]
[381113136,1756050653417,-1763.0,0.00047487,30]
[381113137,1756050653426,-1763.0,0.00047487,30]
[381113138,1756050653436,-153.0,0.00047487,30]
[381113139,1756050653446,-1763.0,0.00047487,30]
[381113140,1756050653456,-156.41520344,0.00047487,30]
[381113141,1756050653466,-1763.0,0.00047487,30]
[381113142,1756050653477,-1452.47056205,0.00047487,30]
[381113143,1756050653487,-1763.0,0.00047487,30]
[381113144,1756050653497,-600.0,0.00047507,60]
[381113145,1756050653507,-270.05852784,0.00047525,50]
[381113146,1756050653517,-200.0,0.00047668,120]
[381113147,1756050653526,-750.0,0.00047688,10]
[381113148,1756050653536,-200.0,0.00047797,120]
[381113149,1756050653546,-500.0,0.00047945,120]
[381113150,1756050653556,-161.0055628,0.00047945,30]
[381113151,1756050653566,-300.0,0.00048,120]
[381113152,1756050653576,-158.0,0.00048,30]
[381113153,1756050653586,-158.0,0.00048,45]
[381113154,1756050653596,-2992.51123307,0.00048,120]
[381113155,1756050653606,-199.0,0.00048082,32]
[381113156,1756050653615,-200.0,0.00048172,120]
[381113157,1756050653625,-294.186276,0.00048219,30]
[381113158,1756050653635,-294.186276,0.00048219,30]
[381113159,1756050653645,-294.186276,0.00048219,30]
[381113160,1756050653655,-553.2078057,0.00048219,30]
[381113161,1756050653664,-200.0,0.00048221,120]
[381113162,1756050653674,-850.0,0.00048236,10]
[381113163,1756050653684,-505.28,0.000483,120]
[381113164,1756050653694,-408.0,0.00048415,2]
[381113165,1756050653703,-150.0,0.00048415,2]
[381113166,1756050653713,-1107.0913086,0.00048493,30]
[381113167,1756050653723,-588.372552,0.00048493,30]
[381113168,1756050653733,-155.0,0.000485,120]
[381113169,1756050653743,-200.0,0.00048627,120]
[381113170,1756050653753,-199.0,0.00048767,34]
[381113171,1756050653763,-200.0,0.00048772,120]
[381113172,1756050653772,-950.0,0.00048784,10]
[381113173,1756050653783,-1000.0,0.00049,120]
[381113174,1756050653792,-309.28782702,0.00049,15]
[381113175,1756050653802,-452.2,0.00049,120]
[381113176,1756050653811,-500.0,0.0004904,60]
[381113177,1756050653822,-1500.0,0.00049041,120]
[381113178,1756050653832,-1500.0,0.00049041,120]
[381113179,1756050653842,-1500.0,0.00049041,120]
[381113180,1756050653851,-1500.0,0.00049041,120]
[381113181,1756050653862,-621.18114706,0.00049041,120]
[381113182,1756050653871,-200.0,0.00049127,120]
[381113183,1756050653881,-608.0,0.00049315,120]
[381113184,1756050653890,-500.0,0.00049315,120]
[381113185,1756050653900,-500.0,0.00049315,120]
[381113186,1756050653910,-500.0,0.00049315,120]
[381113187,1756050653919,-500.0,0.00049315,120]
[381113188,1756050653929,-500.0,0.00049315,120]
[381113189,1756050653938,-502.87516373,0.00049315,120]
[381113190,1756050653948,-500.0,0.00049315,120]
[381113191,1756050653957,-500.0,0.00049315,120]
[381113192,1756050653967,-500.0,0.00049315,120]
[381113193,1756050653976,-500.0,0.00049315,120]
[381113194,1756050653986,-500.0,0.00049315,120]
[381113195,1756050653995,-500.0,0.00049315,120]
[381113196,1756050654005,-500.0,0.00049315,120]
[381113197,1756050654014,-500.0,0.00049315,120]
[381113198,1756050654025,-500.0,0.00049315,120]
[381113199,1756050654038,-500.0,0.00049315,120]
[381113200,1756050654048,-500.0,0.00049315,120]
[381113201,1756050654057,-500.0,0.00049315,120]
[381113202,1756050654069,-500.0,0.00049315,120]
[381113203,1756050654079,-500.0,0.00049315,120]
[381113204,1756050654089,-500.0,0.00049315,120]
[381113205,1756050654098,-500.0,0.00049315,120]
[381113206,1756050654108,-554.92271082,0.00049315,120]
[381113207,1756050654119,-500.0,0.00049315,120]
[381113208,1756050654128,-300.0,0.00049315,120]
[381113209,1756050654138,-589.00885373,0.00049332,10]
[381113210,1756050654150,-500.0,0.00049451,30]
[381113211,1756050654162,-199.0,0.00049452,36]
[381113212,1756050654172,-1641.57688384,0.00049489,10]
[381113213,1756050654182,-24014.0968806,0.00049579,4]
[381113214,1756050654191,-480.0,0.00049589,120]
[381113215,1756050654200,-480.0,0.00049589,120]
[381113216,1756050654210,-480.0,0.00049589,120]
[381113217,1756050654220,-871.6,0.00049589,120]
[381113218,1756050654229,-480.0,0.00049589,120]
[381113219,1756050654238,-480.0,0.00049589,120]
[381113220,1756050654248,-480.0,0.00049589,120]
[381113221,1756050654257,-480.0,0.00049589,30]
[381113222,1756050654266,-480.0,0.00049589,120]
[381113223,1756050654277,-1848.89,0.00049589,120]
[381113224,1756050654286,-480.0,0.00049589,120]
[381113225,1756050654295,-460.32578701,0.00049589,120]
[381113226,1756050654305,-480.0,0.00049589,120]
[381113227,1756050654315,-480.0,0.00049589,7]
[381113228,1756050654324,-630.73,0.00049589,120]
[381113229,1756050654333,-480.0,0.00049589,120]
[381113230,1756050654343,-480.0,0.00049589,120]
[381113231,1756050654352,-480.0,0.00049589,120]
[381113232,1756050654363,-480.0,0.00049589,120]
[381113233,1756050654372,-480.0,0.00049589,120]
[381113234,1756050654382,-480.0,0.00049589,120]
[381113235,1756050654392,-480.0,0.00049589,120]
[381113236,1756050654401,-480.0,0.00049589,120]
[381113237,1756050654410,-480.0,0.00049589,7]
[381113238,1756050654420,-480.0,0.00049589,120]
[381113239,1756050654430,-480.0,0.00049589,120]
[381113240,1756050654439,-480.0,0.00049589,120]
[381113241,1756050654448,-480.0,0.00049589,120]
[381113242,1756050654458,-777.76,0.00049589,120]
[381113243,1756050654468,-480.0,0.00049589,120]
[381113244,1756050654478,-480.0,0.00049589,120]
[381113245,1756050654488,-480.0,0.00049589,120]
[381113246,1756050654498,-552.99,0.00049589,120]
[381113247,1756050654507,-1468.98,0.00049589,120]
[381113248,1756050654516,-480.0,0.00049589,120]
[381113249,1756050654526,-392.60115851,0.00049589,120]
[381113250,1756050654535,-480.0,0.00049589,120]
[381113251,1756050654544,-480.0,0.00049589,120]
[381113252,1756050654554,-533.64,0.00049589,120]
[381113253,1756050654563,-480.0,0.00049589,120]
[381113254,1756050654573,-480.0,0.00049589,120]
[381113255,1756050654582,-480.0,0.00049589,120]
[381113256,1756050654591,-777.1,0.00049589,120]
[381113257,1756050654601,-1397.99,0.00049589,120]
[381113258,1756050654610,-480.0,0.00049589,120]
[381113259,1756050654619,-480.0,0.00049589,120]
[381113260,1756050654628,-480.0,0.00049589,120]
[381113261,1756050654637,-480.0,0.00049589,120]
[381113262,1756050654647,-480.0,0.00049589,120]
[381113263,1756050654656,-453.154846,0.00049589,120]
[381113264,1756050654666,-480.0,0.00049589,120]
[381113265,1756050654676,-480.0,0.00049589,120]
[381113266,1756050654685,-480.0,0.00049589,120]
[381113267,1756050654695,-480.0,0.00049589,120]
[381113268,1756050654704,-1415.31,0.00049589,120]
[381113269,1756050654714,-2377.28,0.00049589,120]
[381113270,1756050654724,-480.0,0.00049589,120]
[381113271,1756050654734,-500.0,0.00049589,120]
[381113272,1756050654743,-480.0,0.00049589,120]
[381113273,1756050654753,-480.0,0.00049589,120]
[381113274,1756050654762,-723.27,0.00049589,120]
[381113275,1756050654772,-480.0,0.00049589,120]
[381113276,1756050654782,-480.0,0.00049589,120]
[381113277,1756050654792,-480.0,0.00049589,120]
[381113278,1756050654801,-480.0,0.00049589,120]
[381113279,1756050654811,-629.7,0.00049589,120]
[381113280,1756050654820,-480.0,0.00049589,120]
[381113281,1756050654829,-480.0,0.00049589,120]
[381113282,1756050654839,-480.0,0.00049589,120]
[381113283,1756050654849,-480.0,0.00049589,120]
[381113284,1756050654858,-514.83,0.00049589,120]
[381113285,1756050654867,-1068.61,0.00049589,120]
[381113286,1756050654877,-480.0,0.00049589,120]
[381113287,1756050654887,-583.47,0.00049589,120]
[381113288,1756050654897,-828.46,0.00049589,120]
[381113289,1756050654906,-480.0,0.00049589,120]
[381113290,1756050654915,-480.0,0.00049589,120]
[381113291,1756050654925,-771.27,0.00049589,120]
[381113292,1756050654934,-480.0,0.00049589,120]
[381113293,1756050654944,-500.0,0.00049589,120]
[381113294,1756050654953,-480.0,0.00049589,120]
[381113295,1756050654963,-500.0,0.00049589,120]
[381113296,1756050654972,-500.0,0.00049589,120]
[381113297,1756050654981,-492.95372918,0.00049589,120]
[381113298,1756050654991,-560.74,0.00049589,120]
[381113299,1756050655000,-480.0,0.00049589,120]
[381113300,1756050655009,-480.0,0.00049589,120]
[381113301,1756050655018,-480.0,0.00049589,120]
[381113302,1756050655027,-480.0,0.00049589,120]
[381113303,1756050655037,-629.55914989,0.00049589,120]
[381113304,1756050655046,-480.0,0.00049589,120]
[381113305,1756050655056,-480.0,0.00049589,120]
[381113306,1756050655066,-480.0,0.00049589,120]
[381113307,1756050655079,-480.0,0.00049589,120]
[381113308,1756050655088,-480.0,0.00049589,120]
[381113309,1756050655100,-480.0,0.00049589,120]
[381113310,1756050655110,-480.0,0.00049589,120]
[381113311,1756050655121,-480.0,0.00049589,120]
[381113312,1756050655131,-480.0,0.00049589,120]
[381113313,1756050655140,-480.0,0.00049589,120]
[381113314,1756050655150,-1041.15,0.00049589,120]
[381113315,1756050655160,-480.0,0.00049589,120]
[381113316,1756050655170,-480.0,0.00049589,120]
[381113317,1756050655179,-480.0,0.00049589,120]
[381113318,1756050655188,-480.0,0.00049589,120]
[381113319,1756050655198,-480.0,0.00049589,120]
[381113320,1756050655207,-480.0,0.00049589,120]
[381113321,1756050655217,-622.16,0.00049589,120]
[381113322,1756050655226,-480.0,0.00049589,90]
[381113323,1756050655238,-480.0,0.00049589,120]
[381113324,1756050655247,-480.0,0.00049589,120]
[381113325,1756050655256,-480.0,0.00049589,120]
[381113326,1756050655265,-480.0,0.00049589,30]
[381113327,1756050655275,-480.0,0.00049589,120]
[381113328,1756050655284,-480.0,0.00049589,120]
[381113329,1756050655294,-480.0,0.00049589,120]
[381113330,1756050655303,-759.94,0.00049589,120]
[381113331,1756050655313,-480.0,0.00049589,120]
[381113332,1756050655323,-450.1782722,0.00049589,120]
[381113333,1756050655332,-533.94988374,0.00049589,120]
[381113334,1756050655342,-705.52,0.00049589,120]
[381113335,1756050655352,-480.0,0.00049589,120]
[381113336,1756050655361,-480.0,0.00049589,120]
[381113337,1756050655371,-1580.56,0.00049589,120]
[381113338,1756050655381,-480.0,0.00049589,120]
[381113339,1756050655391,-480.0,0.00049589,120]
[381113340,1756050655400,-1761.08,0.00049589,120]
[381113341,1756050655410,-480.0,0.00049589,120]
[381113342,1756050655419,-480.0,0.00049589,120]
[381113343,1756050655428,-480.0,0.00049589,120]
[381113344,1756050655438,-883.11,0.00049589,120]
[381113345,1756050655447,-480.0,0.00049589,120]
[381113346,1756050655456,-480.0,0.00049589,120]
[381113347,1756050655466,-480.0,0.00049589,120]
[381113348,1756050655476,-1530.82,0.00049589,120]
[381113349,1756050655486,-480.0,0.00049589,120]
[381113350,1756050655495,-480.0,0.00049589,120]
[381113351,1756050655505,-780.4,0.00049589,120]
[381113352,1756050655514,-1606.65,0.00049589,120]
[381113353,1756050655523,-480.0,0.00049589,120]
[381113354,1756050655534,-480.0,0.00049589,120]
[381113355,1756050655543,-480.0,0.00049589,120]
[381113356,1756050655553,-480.0,0.00049589,120]
[381113357,1756050655562,-480.0,0.00049589,120]
[381113358,1756050655623,-480.0,0.00049589,120]
[381113359,1756050655633,-1652.31,0.00049589,120]
[381113360,1756050655642,-480.0,0.00049589,120]
[381113361,1756050655652,-480.0,0.00049589,120]
[381113362,1756050655661,-480.0,0.00049589,120]
[381113363,1756050655671,-480.0,0.00049589,120]
[381113364,1756050655680,-2053.6,0.00049589,120]
[381113365,1756050655690,-508.95,0.00049589,120]
[381113366,1756050655700,-480.0,0.00049589,120]
[381113367,1756050655709,-480.0,0.00049589,120]
[381113368,1756050655719,-480.0,0.00049589,120]
[381113369,1756050655729,-480.0,0.00049589,120]
[381113370,1756050655739,-480.0,0.00049589,120]
[381113371,1756050655749,-480.0,0.00049589,120]
[381113372,1756050655759,-480.0,0.00049589,120]
[381113373,1756050655769,-480.0,0.00049589,120]
[381113374,1756050655778,-594.79,0.00049589,120]
[381113375,1756050655788,-500.0,0.00049589,120]
[381113376,1756050655798,-500.0,0.00049589,120]
[381113377,1756050655807,-500.0,0.00049589,120]
[381113378,1756050655817,-500.0,0.00049589,120]
[381113379,1756050655828,-500.0,0.00049589,120]
[381113380,1756050655837,-500.0,0.00049589,120]
[381113381,1756050655846,-537.39,0.00049589,120]
[381113382,1756050655856,-500.0,0.00049589,120]
[381113383,1756050655865,-500.0,0.00049589,120]
[381113384,1756050655875,-500.0,0.00049589,120]
[381113385,1756050655884,-480.0,0.00049589,120]
[381113386,1756050655894,-500.0,0.00049589,120]
[381113387,1756050655903,-500.0,0.00049589,120]
[381113388,1756050655913,-500.0,0.00049589,120]
[381113389,1756050655922,-500.0,0.00049589,120]
[381113390,1756050655932,-500.0,0.00049589,120]
[381113391,1756050655941,-500.0,0.00049589,120]
[381113392,1756050655950,-600.49030019,0.00049589,120]
[381113393,1756050655960,-480.0,0.00049589,120]
[381113394,1756050655970,-1446.51,0.00049589,120]
[381113395,1756050655979,-508.03,0.00049589,120]
[381113396,1756050655989,-480.0,0.00049589,120]
[381113397,1756050655999,-480.0,0.00049589,120]
[381113398,1756050656008,-480.0,0.00049589,120]
[381113399,1756050656017,-480.0,0.00049589,120]
[381113400,1756050656027,-850.56,0.00049589,120]
[381113401,1756050656036,-2132.92,0.00049589,120]
[381113402,1756050656046,-2159.18,0.00049589,120]
[381113403,1756050656055,-480.0,0.00049589,120]
[381113404,1756050656065,-686.93,0.00049589,120]
[381113405,1756050656078,-480.0,0.00049589,120]
[381113406,1756050656087,-480.0,0.00049589,120]
[381113407,1756050656097,-480.0,0.00049589,120]
[381113408,1756050656106,-657.19,0.00049589,120]
[381113409,1756050656116,-480.0,0.00049589,120]
[381113410,1756050656126,-480.0,0.00049589,120]
[381113411,1756050656136,-480.0,0.00049589,120]
[381113412,1756050656147,-1094.41,0.00049589,120]
[381113413,1756050656157,-1000.0,0.00049589,120]
[381113414,1756050656166,-655.21,0.00049589,120]
[381113415,1756050656176,-480.0,0.00049589,120]
[381113416,1756050656186,-1988.81,0.00049589,120]
[381113417,1756050656195,-480.0,0.00049589,120]
[381113418,1756050656204,-480.0,0.00049589,120]
[381113419,1756050656214,-510.67148661,0.00049589,120]
[381113420,1756050656223,-378.58943984,0.00049589,120]
[381113421,1756050656233,-480.0,0.00049589,120]
[381113422,1756050656242,-862.01,0.00049589,120]
[381113423,1756050656252,-2273.33,0.00049589,120]
[381113424,1756050656262,-610.75,0.00049589,120]
[381113425,1756050656271,-480.0,0.00049589,120]
[381113426,1756050656281,-930.43,0.00049589,120]
[381113427,1756050656291,-480.0,0.00049589,120]
[381113428,1756050656300,-480.0,0.00049589,120]
[381113429,1756050656310,-1367.75,0.00049589,120]
[381113430,1756050656320,-480.0,0.00049589,120]
[381113431,1756050656329,-480.0,0.00049589,120]
[381113432,1756050656339,-2512.42,0.00049589,120]
[381113433,1756050656348,-672.73,0.00049589,120]
[381113434,1756050656358,-3050.0,0.00049589,120]
[381113435,1756050656368,-480.0,0.00049589,120]
[381113436,1756050656378,-1151.8,0.00049589,120]
[381113437,1756050656387,-480.0,0.00049589,120]
[381113438,1756050656396,-480.0,0.00049589,120]
[381113439,1756050656405,-480.0,0.00049589,120]
[381113440,1756050656415,-480.0,0.00049589,120]
[381113441,1756050656426,-480.0,0.00049589,120]
[381113442,1756050656436,-480.0,0.00049589,120]
[381113443,1756050656447,-531.09,0.00049589,120]
[381113444,1756050656458,-531.09,0.00049589,120]
[381113445,1756050656467,-531.09,0.00049589,120]
[381113446,1756050656477,-480.0,0.00049589,120]
[381113447,1756050656486,-531.09,0.00049589,120]
[381113448,1756050656496,-531.09,0.00049589,120]
[381113449,1756050656506,-531.09,0.00049589,120]
[381113450,1756050656515,-531.09,0.00049589,120]
[381113451,1756050656525,-480.0,0.00049589,120]
[381113452,1756050656535,-480.0,0.00049589,120]
[381113453,1756050656545,-531.09,0.00049589,120]
[381113454,1756050656555,-531.09,0.00049589,120]
[381113455,1756050656565,-1050.29,0.00049589,120]
[381113456,1756050656574,-531.09,0.00049589,120]
[381113457,1756050656584,-531.09,0.00049589,120]
[381113458,1756050656593,-531.09,0.00049589,120]
[381113459,1756050656602,-531.09,0.00049589,120]
[381113460,1756050656612,-531.09,0.00049589,120]
[381113461,1756050656622,-531.09,0.00049589,120]
[381113462,1756050656632,-531.09,0.00049589,120]
[381113463,1756050656641,-849.02,0.00049589,120]
[381113464,1756050656651,-480.0,0.00049589,120]
[381113465,1756050656660,-531.09,0.00049589,120]
[381113466,1756050656670,-531.09,0.00049589,120]
[381113467,1756050656679,-531.09,0.00049589,120]
[381113468,1756050656689,-531.09,0.00049589,120]
[381113469,1756050656698,-531.09,0.00049589,120]
[381113470,1756050656708,-531.09,0.00049589,120]
[381113471,1756050656717,-531.09,0.00049589,120]
[381113472,1756050656727,-531.24013008,0.00049589,120]
[381113473,1756050656737,-489.24,0.00049589,120]
[381113474,1756050656746,-480.0,0.00049589,120]
[381113475,1756050656756,-480.0,0.00049589,120]
[381113476,1756050656765,-480.0,0.00049589,120]
[381113477,1756050656775,-480.0,0.00049589,120]
[381113478,1756050656785,-480.0,0.00049589,120]
[381113479,1756050656794,-480.0,0.00049589,120]
[381113480,1756050656804,-480.0,0.00049589,120]
[381113481,1756050656814,-480.0,0.00049589,120]
[381113482,1756050656824,-770.97,0.00049589,120]
[381113483,1756050656833,-480.0,0.00049589,120]
[381113484,1756050656843,-558.71,0.00049589,120]
[381113485,1756050656852,-558.71,0.00049589,120]
[381113486,1756050656862,-558.71,0.00049589,120]
[381113487,1756050656871,-558.71,0.00049589,120]
[381113488,1756050656880,-630.4,0.00049589,120]
[381113489,1756050656890,-558.71,0.00049589,120]
[381113490,1756050656900,-558.71,0.00049589,120]
[381113491,1756050656909,-678.2,0.00049589,120]
[381113492,1756050656919,-558.71,0.00049589,120]
[381113493,1756050656928,-558.71,0.00049589,120]
[381113494,1756050656937,-558.71,0.00049589,120]
[381113495,1756050656947,-1018.67,0.00049589,120]
[381113496,1756050656956,-558.71,0.00049589,120]
[381113497,1756050656966,-1306.19,0.00049589,120]
[381113498,1756050656976,-977.76,0.00049589,120]
[381113499,1756050656987,-716.16,0.00049589,120]
[381113500,1756050656997,-480.0,0.00049589,120]
[381113501,1756050657006,-592.85,0.00049589,120]
[381113502,1756050657016,-689.44,0.00049589,120]
[381113503,1756050657025,-480.0,0.00049589,120]
[381113504,1756050657035,-768.13,0.00049589,120]
[381113505,1756050657044,-795.81,0.00049589,120]
[381113506,1756050657053,-480.0,0.00049589,120]
[381113507,1756050657062,-575.39,0.00049589,120]
[381113508,1756050657076,-1923.39,0.00049589,120]
[381113509,1756050657085,-480.0,0.00049589,120]
[381113510,1756050657095,-480.0,0.00049589,120]
[381113511,1756050657104,-480.0,0.00049589,120]
[381113512,1756050657114,-914.33,0.00049589,120]
[381113513,1756050657125,-650.92,0.00049589,120]
[381113514,1756050657135,-480.0,0.00049589,120]
[381113515,1756050657146,-480.0,0.00049589,120]
[381113516,1756050657156,-820.53,0.00049589,120]
[381113517,1756050657168,-186.14232848,0.00049589,120]
[381113518,1756050657178,-2343.82,0.00049589,120]
[381113519,1756050657187,-523.28,0.00049589,120]
[381113520,1756050657197,-480.0,0.00049589,120]
[381113521,1756050657206,-480.0,0.00049589,120]
[381113522,1756050657216,-166.05918141,0.00049589,120]
[381113523,1756050657225,-2007.39,0.00049589,120]
[381113524,1756050657235,-480.0,0.00049589,120]
[381113525,1756050657244,-480.0,0.00049589,120]
[381113526,1756050657254,-480.0,0.00049589,120]
[381113527,1756050657263,-480.0,0.00049589,120]
[381113528,1756050657272,-3373.15,0.00049589,120]
[381113529,1756050657283,-1030.58,0.00049589,120]
[381113530,1756050657292,-667.1,0.00049589,120]
[381113531,1756050657301,-2387.7,0.00049589,120]
[381113532,1756050657310,-1329.34,0.00049589,120]
[381113533,1756050657319,-480.0,0.00049589,2]
[381113534,1756050657329,-480.0,0.00049589,120]
[381113535,1756050657338,-480.0,0.00049589,120]
[381113536,1756050657347,-1077.25,0.00049589,120]
[381113537,1756050657357,-3027.92,0.00049589,120]
[381113538,1756050657366,-554.44,0.00049589,120]
[381113539,1756050657376,-480.0,0.00049589,120]
[381113540,1756050657386,-1684.1,0.00049589,120]
[381113541,1756050657396,-480.0,0.00049589,120]
[381113542,1756050657406,-480.0,0.00049589,120]
[381113543,1756050657415,-480.0,0.00049589,120]
[381113544,1756050657425,-480.0,0.00049589,120]
[381113545,1756050657435,-480.0,0.00049589,120]
[381113546,1756050657445,-468.19764401,0.00049589,120]
[381113547,1756050657454,-480.0,0.00049589,120]
[381113548,1756050657464,-261.93276681,0.00049589,120]
[381113549,1756050657474,-480.0,0.00049589,120]
[381113550,1756050657484,-462.6586019,0.00049589,120]
[381113551,1756050657494,-480.0,0.00049589,120]
[381113552,1756050657504,-1181.15,0.00049589,120]
[381113553,1756050657513,-480.0,0.00049589,120]
[381113554,1756050657523,-323.52,0.00049589,120]
[381113555,1756050657534,-461.131286,0.00049589,120]
[381113556,1756050657543,-770.7,0.00049589,120]
[381113557,1756050657553,-1055.12,0.00049589,120]
[381113558,1756050657563,-480.0,0.00049589,120]
[381113559,1756050657572,-480.0,0.00049589,120]
[381113560,1756050657582,-480.0,0.00049589,120]
[381113561,1756050657592,-480.0,0.00049589,120]
[381113562,1756050657602,-480.0,0.00049589,120]
[381113563,1756050657611,-3072.02,0.00049589,120]
[381113564,1756050657621,-1038.78,0.00049589,120]